[Event "*** Titled Tuesday Blitz"]
[Site "Chess.com"]
[Date "2021.04.06"]
[Round "5"]
[White "I_Enchev"]
[Black "TST2014"]
[Result "1/2-1/2"]
[WhiteElo "2497"]
[BlackElo "2674"]
[TimeControl "180+1"]
[EndTime "10:58:08 PDT"]
[Termination "Game drawn by agreement"]

1. d4 {[%clk 0:03:00.9]} 1... Nf6 {[%clk 0:02:58.9]} 2. c4 {[%clk 0:03:01.2]}
2... c5 {[%clk 0:02:58.6]} 3. d5 {[%clk 0:03:01.1]} 3... b5 {[%clk 0:02:58.6]}
4. cxb5 {[%clk 0:03:01.3]} 4... a6 {[%clk 0:02:58.6]} 5. b6 {[%clk 0:03:01.6]}
5... d6 {[%clk 0:02:58]} 6. Nc3 {[%clk 0:03:01.7]} 6... Nbd7 {[%clk 0:02:57.8]}
7. e4 {[%clk 0:03:01.8]} 7... g6 {[%clk 0:02:57.5]} 8. Nf3 {[%clk 0:03:02]} 8...
Bg7 {[%clk 0:02:57.4]} 9. h3 {[%clk 0:03:00.5]} 9... O-O {[%clk 0:02:56.8]} 10.
Bd3 {[%clk 0:03:00.5]} 10... Qxb6 {[%clk 0:02:54.7]} 11. O-O {[%clk 0:03:00.6]}
11... Ne8 {[%clk 0:02:54.6]} 12. Re1 {[%clk 0:02:57.5]} 12... Nc7 {[%clk
0:02:53.9]} 13. Qe2 {[%clk 0:02:57.3]} 13... Nb5 {[%clk 0:02:45.7]} 14. Nxb5
{[%clk 0:02:51.9]} 14... axb5 {[%clk 0:02:45.4]} 15. Bxb5 {[%clk 0:02:52.8]}
15... Ba6 {[%clk 0:02:45.1]} 16. Bxa6 {[%clk 0:02:52.6]} 16... Qxa6 {[%clk
0:02:45]} 17. Bf4 {[%clk 0:02:48.6]} 17... Qxe2 {[%clk 0:02:33.1]} 18. Rxe2
{[%clk 0:02:49.5]} 18... Rfb8 {[%clk 0:02:32.8]} 19. e5 {[%clk 0:02:46.2]} 19...
dxe5 {[%clk 0:02:24]} 20. Nxe5 {[%clk 0:02:47.1]} 20... Nxe5 {[%clk 0:02:24]}
21. Bxe5 {[%clk 0:02:46]} 21... Bxe5 {[%clk 0:02:17.4]} 22. Rxe5 {[%clk
0:02:46.9]} 22... Rxb2 {[%clk 0:02:06.1]} 23. Rxe7 {[%clk 0:02:36]} 23... Rd2
{[%clk 0:01:52.5]} 24. a4 {[%clk 0:02:30.5]} 24... Rxd5 {[%clk 0:01:52]} 25. a5
{[%clk 0:02:30.8]} 25... Ra6 {[%clk 0:01:51.8]} 26. Rc7 {[%clk 0:02:25.7]} 26...
h5 {[%clk 0:01:27.5]} 27. h4 {[%clk 0:02:23.6]} 27... Kg7 {[%clk 0:01:23.9]} 28.
Ra4 {[%clk 0:02:18]} 28... Rd4 {[%clk 0:01:14.8]} 29. Rxd4 {[%clk 0:02:13.9]}
29... cxd4 {[%clk 0:01:14.9]} 30. Rc5 {[%clk 0:02:12.2]} 30... Kf6 {[%clk
0:01:02.8]} 31. Kf1 {[%clk 0:02:09.1]} 31... Ke6 {[%clk 0:00:55.3]} 32. Ke2
{[%clk 0:02:07.8]} 32... Kd6 {[%clk 0:00:53.1]} 33. Rg5 {[%clk 0:02:06.6]} 33...
Kc7 {[%clk 0:00:46.4]} 34. Kd3 {[%clk 0:02:05.1]} 34... Rf6 {[%clk 0:00:46.5]}
35. f3 {[%clk 0:01:59.7]} 35... Rf4 {[%clk 0:00:46.2]} 36. Rb5 {[%clk
0:01:18.7]} 36... Rxh4 {[%clk 0:00:45.1]} 37. a6 {[%clk 0:01:19.3]} 37... Rh1
{[%clk 0:00:39.2]} 38. Ra5 {[%clk 0:01:18.6]} 38... Kb8 {[%clk 0:00:37.9]} 39.
a7+ {[%clk 0:01:18]} 39... Ka8 {[%clk 0:00:38]} 40. Kxd4 {[%clk 0:01:17.2]}
40... Rh2 {[%clk 0:00:34.9]} 41. Rg5 {[%clk 0:01:03.2]} 41... Kxa7 {[%clk
0:00:32.3]} 42. Ke5 {[%clk 0:00:57.2]} 42... Rh4 {[%clk 0:00:30.6]} 43. g3
{[%clk 0:00:55.7]} 43... Rc4 {[%clk 0:00:25.9]} 44. Kf6 {[%clk 0:00:55.5]} 44...
Rc7 {[%clk 0:00:23.7]} 45. Re5 {[%clk 0:00:48.8]} 45... Kb6 {[%clk 0:00:23.8]}
46. f4 {[%clk 0:00:43.9]} 46... Rc3 {[%clk 0:00:18.6]} 47. Rg5 {[%clk
0:00:42.2]} 47... Rc7 {[%clk 0:00:16.7]} 48. f5 {[%clk 0:00:36.1]} 48... gxf5
{[%clk 0:00:14.3]} 49. Rxh5 {[%clk 0:00:35.7]} 49... Rc3 {[%clk 0:00:12.8]} 50.
Rg5 {[%clk 0:00:35.7]} 50... Rf3 {[%clk 0:00:09.5]} 51. Kxf7 {[%clk 0:00:34.1]}
51... f4 {[%clk 0:00:09.4]} 52. g4 {[%clk 0:00:34.4]} 52... Rg3 {[%clk
0:00:09.8]} 53. Ke6 {[%clk 0:00:28.6]} 53... f3 {[%clk 0:00:10.1]} 54. Rf5
{[%clk 0:00:25.6]} 54... Rxg4 {[%clk 0:00:09.4]} 55. Rxf3 {[%clk 0:00:25.9]}
1/2-1/2

[Event "*** Titled Tuesday Blitz"]
[Site "Chess.com"]
[Date "2021.04.06"]
[Round "5"]
[White "Hasangatin_Ramil"]
[Black "Alex-11211"]
[Result "1-0"]
[WhiteElo "2577"]
[BlackElo "2409"]
[TimeControl "180+1"]
[EndTime "10:58:12 PDT"]
[Termination "Hasangatin_Ramil won by resignation"]

1. e4 {[%clk 0:03:00.8]} 1... c5 {[%clk 0:02:59]} 2. Nf3 {[%clk 0:03:00.8]} 2...
g6 {[%clk 0:02:59.4]} 3. Bc4 {[%clk 0:02:58.7]} 3... Bg7 {[%clk 0:02:59.2]} 4.
O-O {[%clk 0:02:58.7]} 4... Nc6 {[%clk 0:02:59.2]} 5. c3 {[%clk 0:02:59]} 5...
e5 {[%clk 0:02:58.5]} 6. d4 {[%clk 0:02:53.6]} 6... cxd4 {[%clk 0:02:55.7]} 7.
cxd4 {[%clk 0:02:54.5]} 7... exd4 {[%clk 0:02:56.1]} 8. Bf4 {[%clk 0:02:48]}
8... Nge7 {[%clk 0:02:49.1]} 9. Bd6 {[%clk 0:02:35]} 9... O-O {[%clk 0:02:46.9]}
10. Nbd2 {[%clk 0:02:33.9]} 10... a6 {[%clk 0:02:16.6]} 11. a4 {[%clk
0:02:18.8]} 11... b6 {[%clk 0:01:47.5]} 12. Re1 {[%clk 0:01:53.7]} 12... Bb7
{[%clk 0:01:47.3]} 13. e5 {[%clk 0:01:54.1]} 13... h6 {[%clk 0:01:08.3]} 14. Ne4
{[%clk 0:01:50.1]} 14... Nf5 {[%clk 0:00:35.1]} 15. Bxf8 {[%clk 0:01:43.1]}
15... Qxf8 {[%clk 0:00:36]} 16. Nf6+ {[%clk 0:01:38.7]} 16... Kh8 {[%clk
0:00:14.3]} 17. Nxd7 {[%clk 0:01:35.9]} 17... Qd8 {[%clk 0:00:14.9]} 18. e6
{[%clk 0:01:27.6]} 18... Na5 {[%clk 0:00:15]} 19. Ba2 {[%clk 0:01:18.1]} 19...
fxe6 {[%clk 0:00:07.8]} 20. Bxe6 {[%clk 0:01:19]} 20... Nd6 {[%clk 0:00:05.2]}
21. Nde5 {[%clk 0:01:16.3]} 21... Qf6 {[%clk 0:00:04.6]} 22. Ba2 {[%clk
0:01:06.5]} 22... Nf5 {[%clk 0:00:04.8]} 23. Rc1 {[%clk 0:00:55.1]} 23... Rf8
{[%clk 0:00:04.2]} 24. b4 {[%clk 0:00:53.4]} 24... Nc6 {[%clk 0:00:03]} 25. Nxc6
{[%clk 0:00:52.8]} 25... Bxc6 {[%clk 0:00:03.9]} 26. Re6 {[%clk 0:00:52.8]}
26... Bxf3 {[%clk 0:00:04.5]} 27. Rxf6 {[%clk 0:00:39.6]} 27... Bxd1 {[%clk
0:00:04.2]} 28. Rxf8+ {[%clk 0:00:40.1]} 28... Bxf8 {[%clk 0:00:05.1]} 29. Rxd1
{[%clk 0:00:40.6]} 29... Bxb4 {[%clk 0:00:05.5]} 30. Bc4 {[%clk 0:00:33.5]}
30... a5 {[%clk 0:00:04.8]} 31. Be6 {[%clk 0:00:33.6]} 31... Bc5 {[%clk
0:00:04.6]} 32. Bxf5 {[%clk 0:00:32.4]} 32... gxf5 {[%clk 0:00:05.5]} 33. Kf1
{[%clk 0:00:31.2]} 33... Kg7 {[%clk 0:00:05.9]} 34. Ke2 {[%clk 0:00:31.6]} 34...
Kf6 {[%clk 0:00:06.8]} 35. Kd3 {[%clk 0:00:30.6]} 35... Ke5 {[%clk 0:00:07.3]}
36. Re1+ {[%clk 0:00:27.1]} 36... Kd5 {[%clk 0:00:07.8]} 37. Re8 {[%clk
0:00:25.5]} 37... Bd6 {[%clk 0:00:07.7]} 38. Rh8 {[%clk 0:00:22.8]} 38... Bxh2
{[%clk 0:00:06.5]} 39. Rxh6 {[%clk 0:00:22.6]} 39... Bd6 {[%clk 0:00:06.8]} 40.
Rh5 {[%clk 0:00:21]} 40... Ke6 {[%clk 0:00:04.6]} 41. f3 {[%clk 0:00:16.6]}
41... Bc5 {[%clk 0:00:03.5]} 42. g4 {[%clk 0:00:15.5]} 42... fxg4 {[%clk
0:00:04.4]} 43. fxg4 {[%clk 0:00:16.2]} 43... Kf6 {[%clk 0:00:05]} 44. Rf5+
{[%clk 0:00:16.3]} 44... Kg6 {[%clk 0:00:05.2]} 45. Ke4 {[%clk 0:00:16.6]} 45...
Bb4 {[%clk 0:00:04.7]} 46. Kxd4 {[%clk 0:00:15.1]} 46... Bc5+ {[%clk 0:00:05]}
47. Kc4 {[%clk 0:00:15.3]} 47... Bg1 {[%clk 0:00:04.5]} 48. Kb5 {[%clk
0:00:15.4]} 48... Bf2 {[%clk 0:00:04.2]} 49. Rxf2 {[%clk 0:00:13.4]} 1-0

[Event "*** Titled Tuesday Blitz"]
[Site "Chess.com"]
[Date "2021.04.06"]
[Round "5"]
[White "banane_verte"]
[Black "VladimirBugayev"]
[Result "1-0"]
[WhiteElo "2428"]
[BlackElo "2262"]
[TimeControl "180+1"]
[EndTime "10:58:12 PDT"]
[Termination "banane_verte won on time"]

1. e4 {[%clk 0:03:00.9]} 1... c6 {[%clk 0:02:54]} 2. d4 {[%clk 0:03:00.5]} 2...
d5 {[%clk 0:02:53.8]} 3. Nc3 {[%clk 0:02:58.1]} 3... dxe4 {[%clk 0:02:53.3]} 4.
Nxe4 {[%clk 0:02:57.9]} 4... Nf6 {[%clk 0:02:54.2]} 5. Nxf6+ {[%clk 0:02:58.1]}
5... exf6 {[%clk 0:02:55.1]} 6. c3 {[%clk 0:02:58.5]} 6... Bd6 {[%clk
0:02:55.5]} 7. Bd3 {[%clk 0:02:59.1]} 7... O-O {[%clk 0:02:55.6]} 8. Ne2 {[%clk
0:03:00]} 8... Re8 {[%clk 0:02:55.5]} 9. Qc2 {[%clk 0:03:00.9]} 9... h5 {[%clk
0:02:54.8]} 10. Be3 {[%clk 0:03:01.5]} 10... Nd7 {[%clk 0:02:54.3]} 11. O-O
{[%clk 0:03:00.9]} 11... h4 {[%clk 0:02:52.6]} 12. h3 {[%clk 0:03:00.9]} 12...
Nf8 {[%clk 0:02:51.9]} 13. Rae1 {[%clk 0:02:59.5]} 13... Be6 {[%clk 0:02:37.2]}
14. c4 {[%clk 0:02:58.8]} 14... Rc8 {[%clk 0:02:36.5]} 15. b3 {[%clk 0:02:47.7]}
15... Bb8 {[%clk 0:02:16.1]} 16. Bf4 {[%clk 0:02:40.4]} 16... Bxf4 {[%clk
0:02:08.9]} 17. Nxf4 {[%clk 0:02:41.3]} 17... Qxd4 {[%clk 0:02:08.9]} 18. Nxe6
{[%clk 0:02:38.6]} 18... Rxe6 {[%clk 0:02:03.2]} 19. Bf5 {[%clk 0:02:36.8]}
19... Rce8 {[%clk 0:01:58.9]} 20. Bxe6 {[%clk 0:02:36.8]} 20... fxe6 {[%clk
0:01:59]} 21. Rd1 {[%clk 0:02:35.4]} 21... Qc5 {[%clk 0:01:57.4]} 22. Rfe1
{[%clk 0:02:32.1]} 22... e5 {[%clk 0:01:56.9]} 23. Qd2 {[%clk 0:02:31.2]} 23...
Qa3 {[%clk 0:01:53.7]} 24. Re2 {[%clk 0:02:28.6]} 24... Kf7 {[%clk 0:01:39.4]}
25. Qd3 {[%clk 0:02:16.5]} 25... Qe7 {[%clk 0:01:35.4]} 26. Red2 {[%clk
0:02:12.8]} 26... Qc5 {[%clk 0:01:31.5]} 27. Qd6 {[%clk 0:02:06.2]} 27... Qxd6
{[%clk 0:01:26.7]} 28. Rxd6 {[%clk 0:02:07.1]} 28... Re7 {[%clk 0:01:25.7]} 29.
Rd8 {[%clk 0:02:03.7]} 29... Ne6 {[%clk 0:01:25.5]} 30. Ra8 {[%clk 0:01:50.4]}
30... a6 {[%clk 0:01:19.7]} 31. Rb8 {[%clk 0:01:45.6]} 31... Nd4 {[%clk
0:01:18]} 32. Kf1 {[%clk 0:01:40.4]} 32... g5 {[%clk 0:01:16.8]} 33. b4 {[%clk
0:01:35]} 33... Ke6 {[%clk 0:01:13.7]} 34. a4 {[%clk 0:01:21.2]} 34... Rd7
{[%clk 0:01:02.1]} 35. b5 {[%clk 0:01:17]} 35... axb5 {[%clk 0:01:00.2]} 36.
cxb5 {[%clk 0:01:16.3]} 36... c5 {[%clk 0:00:46.8]} 37. a5 {[%clk 0:01:13.8]}
37... c4 {[%clk 0:00:36.8]} 38. Ra1 {[%clk 0:01:10.2]} 38... Nxb5 {[%clk
0:00:33]} 39. a6 {[%clk 0:01:07.7]} 39... bxa6 {[%clk 0:00:31.3]} 40. Rxa6+
{[%clk 0:01:07.4]} 40... Rd6 {[%clk 0:00:30.4]} 41. Ra4 {[%clk 0:01:02.1]} 41...
Nd4 {[%clk 0:00:25]} 42. Rxc4 {[%clk 0:01:01.7]} 42... Ra6 {[%clk 0:00:25.6]}
43. Rcb4 {[%clk 0:00:59.8]} 43... Ra1+ {[%clk 0:00:20.2]} 44. Rb1 {[%clk
0:00:58]} 44... Rxb1+ {[%clk 0:00:19.8]} 45. Rxb1 {[%clk 0:00:57.6]} 45... Kf5
{[%clk 0:00:20.1]} 46. Rb8 {[%clk 0:00:55.4]} 46... Ne6 {[%clk 0:00:18.3]} 47.
Re8 {[%clk 0:00:52.3]} 47... Nf4 {[%clk 0:00:18.1]} 48. Rf8 {[%clk 0:00:52.8]}
48... Kg6 {[%clk 0:00:18]} 49. Rg8+ {[%clk 0:00:52.5]} 49... Kf7 {[%clk
0:00:18]} 50. Ra8 {[%clk 0:00:53.4]} 50... Kg6 {[%clk 0:00:18.5]} 51. Ra3 {[%clk
0:00:51.3]} 51... Kf5 {[%clk 0:00:18.3]} 52. Kg1 {[%clk 0:00:51.7]} 52... Kg6
{[%clk 0:00:17.8]} 53. Ra8 {[%clk 0:00:51.4]} 53... Kf5 {[%clk 0:00:17.6]} 54.
Rg8 {[%clk 0:00:52.1]} 54... Ke6 {[%clk 0:00:17.6]} 55. Kh2 {[%clk 0:00:51.8]}
55... Kf5 {[%clk 0:00:14.7]} 56. Rg7 {[%clk 0:00:52]} 56... Nd3 {[%clk
0:00:13.3]} 57. Kg1 {[%clk 0:00:49.7]} 57... Nf4 {[%clk 0:00:13.2]} 58. Ra7
{[%clk 0:00:49.9]} 58... Kg6 {[%clk 0:00:12.9]} 59. Ra3 {[%clk 0:00:50.6]} 59...
Ne6 {[%clk 0:00:11.9]} 60. Kf1 {[%clk 0:00:49.2]} 60... Nf4 {[%clk 0:00:12]} 61.
Rb3 {[%clk 0:00:48.7]} 61... Kf5 {[%clk 0:00:12.1]} 62. Kg1 {[%clk 0:00:49]}
62... Kg6 {[%clk 0:00:11.1]} 63. Kh2 {[%clk 0:00:47.9]} 63... Kf5 {[%clk
0:00:08.3]} 64. g3 {[%clk 0:00:47.9]} 64... Ng6 {[%clk 0:00:05.8]} 65. Kg2
{[%clk 0:00:45.9]} 65... Ke6 {[%clk 0:00:02]} 66. Kf3 {[%clk 0:00:44.5]} 1-0

[Event "*** Titled Tuesday Blitz"]
[Site "Chess.com"]
[Date "2021.04.06"]
[Round "5"]
[White "Raud100"]
[Black "CM_rui"]
[Result "1-0"]
[WhiteElo "2276"]
[BlackElo "2420"]
[TimeControl "180+1"]
[EndTime "10:58:12 PDT"]
[Termination "Raud100 won by checkmate"]

1. d4 {[%clk 0:03:00.9]} 1... Nf6 {[%clk 0:02:58.5]} 2. c4 {[%clk 0:02:55.4]}
2... e6 {[%clk 0:02:58.3]} 3. Nf3 {[%clk 0:02:55]} 3... Bb4+ {[%clk 0:02:58.5]}
4. Nbd2 {[%clk 0:02:54.7]} 4... O-O {[%clk 0:02:58.6]} 5. g3 {[%clk 0:02:55.6]}
5... d5 {[%clk 0:02:57.4]} 6. Bg2 {[%clk 0:02:55.7]} 6... dxc4 {[%clk 0:02:49]}
7. O-O {[%clk 0:02:55.5]} 7... c3 {[%clk 0:02:48.8]} 8. bxc3 {[%clk 0:02:56.4]}
8... Bxc3 {[%clk 0:02:49.7]} 9. Rb1 {[%clk 0:02:56.6]} 9... Nc6 {[%clk 0:02:44]}
10. Ba3 {[%clk 0:02:46.1]} 10... Re8 {[%clk 0:02:39.8]} 11. e3 {[%clk
0:02:40.4]} 11... e5 {[%clk 0:02:36.2]} 12. Nb3 {[%clk 0:02:22.2]} 12... exd4
{[%clk 0:02:32.6]} 13. Nfxd4 {[%clk 0:02:19.8]} 13... Nxd4 {[%clk 0:02:30.6]}
14. Nxd4 {[%clk 0:02:19.6]} 14... Bxd4 {[%clk 0:02:25.3]} 15. Qxd4 {[%clk
0:02:15.5]} 15... Qxd4 {[%clk 0:02:23.6]} 16. exd4 {[%clk 0:02:16.4]} 16... c6
{[%clk 0:02:23.1]} 17. Bd6 {[%clk 0:02:04.4]} 17... Rd8 {[%clk 0:02:18.1]} 18.
Be5 {[%clk 0:01:49.2]} 18... Nd7 {[%clk 0:02:11.4]} 19. Bc7 {[%clk 0:01:44.5]}
19... Re8 {[%clk 0:02:10.3]} 20. d5 {[%clk 0:01:44.8]} 20... cxd5 {[%clk
0:02:03.1]} 21. Bxd5 {[%clk 0:01:45.7]} 21... Nc5 {[%clk 0:02:03.2]} 22. Rfc1
{[%clk 0:01:37.8]} 22... Na6 {[%clk 0:01:44.8]} 23. Bf4 {[%clk 0:01:15.4]} 23...
Rd8 {[%clk 0:01:06.1]} 24. Bxb7 {[%clk 0:01:05.7]} 24... Bxb7 {[%clk 0:01:06.3]}
25. Rxb7 {[%clk 0:01:06.6]} 25... Rd5 {[%clk 0:00:48.4]} 26. Rxa7 {[%clk
0:00:57.4]} 26... Rdd8 {[%clk 0:00:46.4]} 27. Rxa8 {[%clk 0:00:47.4]} 27... Rxa8
{[%clk 0:00:47.3]} 28. Rb1 {[%clk 0:00:44.9]} 28... h6 {[%clk 0:00:46.1]} 29. h4
{[%clk 0:00:42.5]} 29... Nc5 {[%clk 0:00:43.3]} 30. Rb8+ {[%clk 0:00:41.4]}
30... Rxb8 {[%clk 0:00:41.4]} 31. Bxb8 {[%clk 0:00:42.3]} 31... Na4 {[%clk
0:00:39.2]} 32. Kf1 {[%clk 0:00:39.5]} 32... Kf8 {[%clk 0:00:34]} 33. Ke1 {[%clk
0:00:36.4]} 33... Ke7 {[%clk 0:00:33.5]} 34. Kd2 {[%clk 0:00:35]} 34... Kd7
{[%clk 0:00:33]} 35. Be5 {[%clk 0:00:29.2]} 35... f6 {[%clk 0:00:28.6]} 36. Bd4
{[%clk 0:00:29.4]} 36... Kc6 {[%clk 0:00:28.5]} 37. Kd3 {[%clk 0:00:27.7]} 37...
Kd5 {[%clk 0:00:27.8]} 38. h5 {[%clk 0:00:28]} 38... Kc6 {[%clk 0:00:24.6]} 39.
Ke4 {[%clk 0:00:27.4]} 39... Kd6 {[%clk 0:00:24.8]} 40. g4 {[%clk 0:00:26.6]}
40... Ke6 {[%clk 0:00:25]} 41. f4 {[%clk 0:00:25.5]} 41... Ke7 {[%clk
0:00:24.3]} 42. Kd5 {[%clk 0:00:23.6]} 42... Kd7 {[%clk 0:00:20.2]} 43. g5
{[%clk 0:00:21.4]} 43... hxg5 {[%clk 0:00:09.2]} 44. fxg5 {[%clk 0:00:20.8]}
44... fxg5 {[%clk 0:00:08.6]} 45. Bxg7 {[%clk 0:00:20.7]} 45... Ke7 {[%clk
0:00:08.9]} 46. Bd4 {[%clk 0:00:20]} 46... g4 {[%clk 0:00:08.2]} 47. h6 {[%clk
0:00:17.3]} 47... Kf7 {[%clk 0:00:03]} 48. h7 {[%clk 0:00:16.8]} 48... Nb6+
{[%clk 0:00:03.5]} 49. Kc6 {[%clk 0:00:15.7]} 49... Nc8 {[%clk 0:00:01.7]} 50.
h8=Q {[%clk 0:00:15.4]} 50... Ne7+ {[%clk 0:00:02.6]} 51. Kd7 {[%clk 0:00:14.8]}
51... g3 {[%clk 0:00:03.5]} 52. Qg7# {[%clk 0:00:14.5]} 1-0

[Event "*** Titled Tuesday Blitz"]
[Site "Chess.com"]
[Date "2021.04.06"]
[Round "5"]
[White "mr_gustavo"]
[Black "Artem_Sadovsky"]
[Result "0-1"]
[WhiteElo "2392"]
[BlackElo "2626"]
[TimeControl "180+1"]
[EndTime "10:58:13 PDT"]
[Termination "Artem_Sadovsky won by resignation"]

1. d4 {[%clk 0:03:00.9]} 1... g6 {[%clk 0:03:00.2]} 2. e4 {[%clk 0:02:58.5]}
2... Bg7 {[%clk 0:03:00.5]} 3. Nc3 {[%clk 0:02:56.9]} 3... c6 {[%clk 0:03:00.2]}
4. f4 {[%clk 0:02:56.6]} 4... d5 {[%clk 0:03:00.4]} 5. e5 {[%clk 0:02:57.1]}
5... h5 {[%clk 0:03:00.7]} 6. Be2 {[%clk 0:02:50.3]} 6... Nh6 {[%clk 0:03:00.6]}
7. Nf3 {[%clk 0:02:49.2]} 7... Bg4 {[%clk 0:03:01]} 8. O-O {[%clk 0:02:48.6]}
8... Nf5 {[%clk 0:02:57.8]} 9. a4 {[%clk 0:02:36.6]} 9... a5 {[%clk 0:02:53.8]}
10. Nb1 {[%clk 0:02:31.6]} 10... e6 {[%clk 0:02:50.8]} 11. c3 {[%clk 0:02:30.2]}
11... Nd7 {[%clk 0:02:46.4]} 12. Nbd2 {[%clk 0:02:30.3]} 12... Ne3 {[%clk
0:02:44.1]} 13. Qb3 {[%clk 0:02:27.8]} 13... Nxf1 {[%clk 0:02:42.2]} 14. Bxf1
{[%clk 0:02:28.7]} 14... Bxf3 {[%clk 0:02:36.9]} 15. Nxf3 {[%clk 0:02:28.7]}
15... Qb6 {[%clk 0:02:37.5]} 16. Qc2 {[%clk 0:02:27.7]} 16... Bf8 {[%clk
0:02:24.8]} 17. b3 {[%clk 0:02:26.1]} 17... Be7 {[%clk 0:02:24.1]} 18. Bd3
{[%clk 0:02:20.6]} 18... Rc8 {[%clk 0:02:08.1]} 19. c4 {[%clk 0:02:16.6]} 19...
c5 {[%clk 0:01:47.1]} 20. cxd5 {[%clk 0:02:13.8]} 20... exd5 {[%clk 0:01:48]}
21. f5 {[%clk 0:02:08.9]} 21... c4 {[%clk 0:01:41.2]} 22. bxc4 {[%clk
0:01:58.3]} 22... Nxe5 {[%clk 0:01:41.6]} 23. c5 {[%clk 0:01:18.7]} 23... Nxf3+
{[%clk 0:01:40.4]} 24. gxf3 {[%clk 0:01:18.8]} 24... Qf6 {[%clk 0:01:41.1]} 25.
fxg6 {[%clk 0:01:02.7]} 25... Qxd4+ {[%clk 0:01:32.2]} 26. Kg2 {[%clk
0:01:02.6]} 26... Rxc5 {[%clk 0:01:02.3]} 27. Qe2 {[%clk 0:00:34.5]} 27... Qxa1
{[%clk 0:00:38.9]} 28. Bb2 {[%clk 0:00:34.5]} 28... Qa2 {[%clk 0:00:32.8]} 29.
Qe5 {[%clk 0:00:20.4]} 29... f6 {[%clk 0:00:17.8]} 30. Qb8+ {[%clk 0:00:20.4]}
30... Bd8 {[%clk 0:00:18.2]} 31. Qxb7 {[%clk 0:00:16]} 31... Rc7 {[%clk
0:00:18.3]} 32. Qb5+ {[%clk 0:00:13.7]} 32... Kf8 {[%clk 0:00:15.5]} 33. Kh3
{[%clk 0:00:07.6]} 33... d4 {[%clk 0:00:12.1]} 34. Qb8 {[%clk 0:00:06.4]} 34...
Qe6+ {[%clk 0:00:12]} 35. Kg2 {[%clk 0:00:05.9]} 35... Qc8 {[%clk 0:00:11.6]}
36. Qb5 {[%clk 0:00:06.1]} 36... Rc2+ {[%clk 0:00:09.8]} 37. Bxc2 {[%clk
0:00:06.7]} 37... Qxc2+ {[%clk 0:00:10.3]} 38. Kh3 {[%clk 0:00:06.5]} 38... Qxg6
{[%clk 0:00:11.2]} 39. Ba3+ {[%clk 0:00:06.1]} 39... Kg7 {[%clk 0:00:11.6]} 40.
Qd7+ {[%clk 0:00:06.7]} 40... Qf7 {[%clk 0:00:11.9]} 41. Qxd4 {[%clk 0:00:05.6]}
41... Qe6+ {[%clk 0:00:12.1]} 42. Kg2 {[%clk 0:00:05.4]} 42... Bb6 {[%clk
0:00:12.6]} 43. Qd3 {[%clk 0:00:03]} 43... Rd8 {[%clk 0:00:11.6]} 44. Qa6 {[%clk
0:00:02.3]} 44... Qa2+ {[%clk 0:00:10.4]} 45. Kh3 {[%clk 0:00:02.2]} 45... Qxa3
{[%clk 0:00:09.8]} 46. Qxb6 {[%clk 0:00:02.7]} 46... Qd6 {[%clk 0:00:09.1]} 47.
Qe3 {[%clk 0:00:02.1]} 47... Qd7+ {[%clk 0:00:08.8]} 48. Kg2 {[%clk 0:00:02.1]}
48... Qd2+ {[%clk 0:00:08.7]} 49. Qxd2 {[%clk 0:00:03]} 49... Rxd2+ {[%clk
0:00:09]} 0-1

[Event "*** Titled Tuesday Blitz"]
[Site "Chess.com"]
[Date "2021.04.06"]
[Round "5"]
[White "DarZay"]
[Black "Giorno"]
[Result "0-1"]
[WhiteElo "2196"]
[BlackElo "2500"]
[TimeControl "180+1"]
[EndTime "10:58:13 PDT"]
[Termination "Giorno won by resignation"]

1. e4 {[%clk 0:03:00.9]} 1... Nc6 {[%clk 0:03:00.2]} 2. Nf3 {[%clk 0:03:00.3]}
2... d6 {[%clk 0:02:59.3]} 3. d4 {[%clk 0:03:00.4]} 3... Nf6 {[%clk 0:02:59.7]}
4. Nc3 {[%clk 0:02:59.9]} 4... Bg4 {[%clk 0:02:59.8]} 5. Be2 {[%clk 0:02:59.4]}
5... Bxf3 {[%clk 0:02:58.7]} 6. Bxf3 {[%clk 0:02:59]} 6... e5 {[%clk 0:02:59.4]}
7. d5 {[%clk 0:02:58.9]} 7... Nd4 {[%clk 0:02:59.4]} 8. Be3 {[%clk 0:02:58.1]}
8... Nxf3+ {[%clk 0:02:58.9]} 9. Qxf3 {[%clk 0:02:58.3]} 9... Be7 {[%clk
0:02:59.6]} 10. O-O-O {[%clk 0:02:58.2]} 10... Qd7 {[%clk 0:02:55]} 11. h3
{[%clk 0:02:54.8]} 11... O-O {[%clk 0:02:34]} 12. g4 {[%clk 0:02:54.5]} 12...
Ne8 {[%clk 0:02:26.8]} 13. h4 {[%clk 0:02:51.9]} 13... c5 {[%clk 0:02:21.8]} 14.
dxc6 {[%clk 0:02:46.8]} 14... bxc6 {[%clk 0:02:21.6]} 15. h5 {[%clk 0:02:45.3]}
15... Nc7 {[%clk 0:02:15.6]} 16. g5 {[%clk 0:02:44.2]} 16... f5 {[%clk
0:02:15.2]} 17. exf5 {[%clk 0:02:36.7]} 17... Rxf5 {[%clk 0:02:13.2]} 18. Qg4
{[%clk 0:02:36]} 18... Qe6 {[%clk 0:02:12.1]} 19. g6 {[%clk 0:02:31.7]} 19... h6
{[%clk 0:02:10.8]} 20. f4 {[%clk 0:02:25.3]} 20... e4 {[%clk 0:01:53]} 21. Ne2
{[%clk 0:02:13.7]} 21... Ra5 {[%clk 0:01:37.4]} 22. Qxe6+ {[%clk 0:02:11]} 22...
Nxe6 {[%clk 0:01:36.8]} 23. Kb1 {[%clk 0:02:07.5]} 23... Rf8 {[%clk 0:01:34.2]}
24. c4 {[%clk 0:02:00.2]} 24... d5 {[%clk 0:01:31.5]} 25. cxd5 {[%clk
0:01:50.7]} 25... cxd5 {[%clk 0:01:30.9]} 26. Nc3 {[%clk 0:01:47.4]} 26... Rd8
{[%clk 0:01:26]} 27. f5 {[%clk 0:01:42.7]} 27... Nc7 {[%clk 0:01:13]} 28. Bf4
{[%clk 0:01:19.9]} 28... Nb5 {[%clk 0:01:00]} 29. Rh2 {[%clk 0:00:27.8]} 29...
Nxc3+ {[%clk 0:00:50.3]} 30. bxc3 {[%clk 0:00:27.7]} 30... d4 {[%clk 0:00:49.9]}
31. Bc7 {[%clk 0:00:19.6]} 31... Rb5+ {[%clk 0:00:46.9]} 32. Rb2 {[%clk
0:00:18]} 32... Rxb2+ {[%clk 0:00:42.1]} 33. Kxb2 {[%clk 0:00:18.3]} 33... dxc3+
{[%clk 0:00:43]} 34. Kc2 {[%clk 0:00:16.9]} 34... Rc8 {[%clk 0:00:36.7]} 35. Be5
{[%clk 0:00:16.6]} 35... Rc5 {[%clk 0:00:31.8]} 36. Bd4 {[%clk 0:00:15.7]} 36...
Rxf5 {[%clk 0:00:31.3]} 37. Bxc3 {[%clk 0:00:14.9]} 37... Rf2+ {[%clk
0:00:24.9]} 38. Kb3 {[%clk 0:00:14.6]} 38... Rf3 {[%clk 0:00:20.7]} 39. Kc4
{[%clk 0:00:09.9]} 39... e3 {[%clk 0:00:19.4]} 40. Rd7 {[%clk 0:00:08.8]} 40...
Kf8 {[%clk 0:00:13]} 41. Bxg7+ {[%clk 0:00:07.1]} 41... Ke8 {[%clk 0:00:13.5]}
42. Rxa7 {[%clk 0:00:06.6]} 42... e2 {[%clk 0:00:14]} 43. Bc3 {[%clk 0:00:06.1]}
43... Rxc3+ {[%clk 0:00:14.2]} 44. Kxc3 {[%clk 0:00:06.5]} 44... e1=Q+ {[%clk
0:00:15.1]} 45. Kc4 {[%clk 0:00:07]} 45... Qe2+ {[%clk 0:00:15.2]} 46. Kd5
{[%clk 0:00:06.1]} 46... Qd3+ {[%clk 0:00:15]} 47. Kc6 {[%clk 0:00:06.2]} 47...
Qc4+ {[%clk 0:00:15]} 48. Kb7 {[%clk 0:00:06.1]} 48... Qb5+ {[%clk 0:00:14.9]}
49. Ka8 {[%clk 0:00:05.3]} 49... Qc6+ {[%clk 0:00:14.6]} 50. Kb8 {[%clk
0:00:05.7]} 50... Bd6+ {[%clk 0:00:14.4]} 0-1